[Event "Early-Titled-Tuesday-Blitz-September-05-2023"]
[Site "Chess.com"]
[Date "2023.09.05"]
[Round "4"]
[White "mitrabhaa"]
[Black "YoreDea"]
[Result "1-0"]
[WhiteElo "2823"]
[BlackElo "2568"]
[TimeControl "180+1"]
[EndTime "8:38:08 PDT"]
[Termination "mitrabhaa won on time"]

1. Nf3 {[%clk 0:02:42.8]} 1... d5 {[%clk 0:02:56.8]} 2. c4 {[%clk 0:02:40.2]}
2... c6 {[%clk 0:02:46.5]} 3. cxd5 {[%clk 0:02:38.8]} 3... cxd5 {[%clk
0:02:46.8]} 4. d4 {[%clk 0:02:39.7]} 4... Nc6 {[%clk 0:02:47.3]} 5. Nc3 {[%clk
0:02:38.1]} 5... Nf6 {[%clk 0:02:46.4]} 6. Bf4 {[%clk 0:02:37.3]} 6... a6 {[%clk
0:02:47]} 7. Rc1 {[%clk 0:02:35.6]} 7... e6 {[%clk 0:02:44.9]} 8. e3 {[%clk
0:02:35.3]} 8... Bd6 {[%clk 0:02:44.3]} 9. Bg5 {[%clk 0:02:35.4]} 9... h6 {[%clk
0:02:43.8]} 10. Bh4 {[%clk 0:02:35.2]} 10... Qb6 {[%clk 0:02:42.1]} 11. Bxf6
{[%clk 0:02:30.8]} 11... gxf6 {[%clk 0:02:42]} 12. Rb1 {[%clk 0:02:30.7]} 12...
f5 {[%clk 0:02:35.2]} 13. g3 {[%clk 0:02:30.3]} 13... Bd7 {[%clk 0:02:30.8]} 14.
Be2 {[%clk 0:02:29.6]} 14... Qa5 {[%clk 0:02:27.3]} 15. a3 {[%clk 0:02:29.4]}
15... b5 {[%clk 0:02:26.9]} 16. O-O {[%clk 0:02:28.7]} 16... O-O {[%clk
0:02:21]} 17. b4 {[%clk 0:02:24.7]} 17... Qb6 {[%clk 0:02:09]} 18. Ne1 {[%clk
0:02:24.3]} 18... Be7 {[%clk 0:01:46.6]} 19. Nd3 {[%clk 0:02:24]} 19... Rfc8
{[%clk 0:01:45]} 20. Nc5 {[%clk 0:02:24]} 20... Be8 {[%clk 0:01:45.4]} 21. Bf3
{[%clk 0:02:23.5]} 21... Qd8 {[%clk 0:01:41.3]} 22. Qd3 {[%clk 0:02:22.3]} 22...
Nb8 {[%clk 0:01:41.2]} 23. Ne2 {[%clk 0:02:20.6]} 23... Nd7 {[%clk 0:01:41.2]}
24. Nf4 {[%clk 0:02:19.2]} 24... Nb6 {[%clk 0:01:36.7]} 25. Nfxe6 {[%clk
0:02:19.1]} 25... fxe6 {[%clk 0:01:36.7]} 26. Nxe6 {[%clk 0:02:20]} 26... Qd6
{[%clk 0:01:35.6]} 27. Qxf5 {[%clk 0:02:18.4]} 27... h5 {[%clk 0:01:19.7]} 28.
Nf4 {[%clk 0:02:12.6]} 28... Bf7 {[%clk 0:01:09]} 29. Bxh5 {[%clk 0:02:11.5]}
29... Rf8 {[%clk 0:01:07.6]} 30. Rbc1 {[%clk 0:02:08.1]} 30... Nc4 {[%clk
0:00:59.6]} 31. Qg4+ {[%clk 0:01:58.8]} 31... Kh7 {[%clk 0:00:54.3]} 32. Bxf7
{[%clk 0:01:55.9]} 32... Rxf7 {[%clk 0:00:51.9]} 33. Qh5+ {[%clk 0:01:56.1]}
33... Kg7 {[%clk 0:00:52.3]} 34. Nxd5 {[%clk 0:01:53.7]} 34... Rh8 {[%clk
0:00:35.4]} 35. Qg4+ {[%clk 0:01:52.9]} 35... Qg6 {[%clk 0:00:35.6]} 36. Qxg6+
{[%clk 0:01:51.5]} 36... Kxg6 {[%clk 0:00:36]} 37. a4 {[%clk 0:01:52]} 37... Nd2
{[%clk 0:00:32]} 38. Rc6+ {[%clk 0:01:43.6]} 38... Kg7 {[%clk 0:00:31]} 39. h4
{[%clk 0:01:38.8]} 39... Nxf1 {[%clk 0:00:26.8]} 40. Kxf1 {[%clk 0:01:39.7]}
40... bxa4 {[%clk 0:00:26.3]} 41. Rxa6 {[%clk 0:01:39.2]} 41... Rd8 {[%clk
0:00:20.2]} 42. Nf4 {[%clk 0:01:35.8]} 42... Rb8 {[%clk 0:00:15.7]} 43. Ne6+
{[%clk 0:01:32.4]} 43... Kg8 {[%clk 0:00:14.4]} 44. Rxa4 {[%clk 0:01:32.4]}
44... Rxb4 {[%clk 0:00:13.6]} 45. Ra8+ {[%clk 0:01:32.2]} 45... Bf8 {[%clk
0:00:12.5]} 46. Kg2 {[%clk 0:01:23.9]} 46... Rb2 {[%clk 0:00:11.9]} 47. Nf4
{[%clk 0:01:24.5]} 47... Kh7 {[%clk 0:00:11.4]} 48. Nh3 {[%clk 0:01:21.4]} 48...
Bh6 {[%clk 0:00:09.7]} 49. Re8 {[%clk 0:01:21]} 49... Kg7 {[%clk 0:00:07.3]} 50.
g4 {[%clk 0:01:18.1]} 50... Rf8 {[%clk 0:00:03.6]} 51. Re4 {[%clk 0:01:17.2]}
51... Kg8 {[%clk 0:00:03.7]} 52. g5 {[%clk 0:01:17.1]} 52... Bg7 {[%clk
0:00:04]} 53. Kg3 {[%clk 0:01:15.8]} 53... Kf7 {[%clk 0:00:03.6]} 54. h5 {[%clk
0:01:15.7]} 54... Re8 {[%clk 0:00:03.5]} 55. Rf4+ {[%clk 0:01:12.5]} 55... Kg8
{[%clk 0:00:03.9]} 56. h6 {[%clk 0:01:12.1]} 56... Bf8 {[%clk 0:00:04.2]} 57.
Rf6 {[%clk 0:01:10.7]} 57... Be7 {[%clk 0:00:04]} 58. Rg6+ {[%clk 0:01:10.9]}
58... Kh8 {[%clk 0:00:04.1]} 59. Rg7 {[%clk 0:01:01.5]} 59... Bf8 {[%clk
0:00:03]} 60. Rd7 {[%clk 0:01:00.6]} 60... Re7 {[%clk 0:00:01.5]} 61. Rd8 {[%clk
0:01:00]} 61... Kg8 {[%clk 0:00:01.4]} 62. Nf4 {[%clk 0:00:59.8]} 1-0

[Event "Early-Titled-Tuesday-Blitz-September-05-2023"]
[Site "Chess.com"]
[Date "2023.09.05"]
[Round "4"]
[White "qx4z"]
[Black "dropstoneDP"]
[Result "0-1"]
[WhiteElo "2831"]
[BlackElo "3013"]
[TimeControl "180+1"]
[EndTime "8:38:10 PDT"]
[Termination "dropstoneDP won by resignation"]

1. d4 {[%clk 0:03:00.9]} 1... d5 {[%clk 0:02:53.2]} 2. Bf4 {[%clk 0:03:00.9]}
2... c5 {[%clk 0:02:48.9]} 3. e3 {[%clk 0:03:01.3]} 3... Nc6 {[%clk 0:02:49.2]}
4. Nf3 {[%clk 0:03:01.5]} 4... Nf6 {[%clk 0:02:49.6]} 5. Nbd2 {[%clk 0:03:01.3]}
5... Qb6 {[%clk 0:02:49.3]} 6. dxc5 {[%clk 0:03:01.4]} 6... Qxb2 {[%clk
0:02:49.9]} 7. Rb1 {[%clk 0:03:02.1]} 7... Qc3 {[%clk 0:02:37.9]} 8. Bb5 {[%clk
0:03:01.8]} 8... e6 {[%clk 0:02:38.5]} 9. O-O {[%clk 0:02:52.3]} 9... Be7 {[%clk
0:02:38.6]} 10. e4 {[%clk 0:02:49]} 10... O-O {[%clk 0:02:37.9]} 11. e5 {[%clk
0:02:44]} 11... Nd7 {[%clk 0:02:37.4]} 12. Nb3 {[%clk 0:02:40.7]} 12... Qb4
{[%clk 0:02:37]} 13. Nbd4 {[%clk 0:02:26.8]} 13... Qxc5 {[%clk 0:02:36.6]} 14.
Re1 {[%clk 0:02:27.3]} 14... Nxd4 {[%clk 0:02:36.1]} 15. Nxd4 {[%clk 0:02:27.2]}
15... a6 {[%clk 0:02:36.6]} 16. Bd3 {[%clk 0:02:27.7]} 16... g6 {[%clk
0:02:36.7]} 17. Nf3 {[%clk 0:02:00.7]} 17... b5 {[%clk 0:02:31.7]} 18. h4 {[%clk
0:01:52.3]} 18... Qc7 {[%clk 0:02:13.5]} 19. Bh6 {[%clk 0:01:49.9]} 19... Re8
{[%clk 0:02:12.7]} 20. Qd2 {[%clk 0:01:50.5]} 20... Nc5 {[%clk 0:02:07.1]} 21.
Ng5 {[%clk 0:01:47.4]} 21... Bf8 {[%clk 0:02:00.8]} 22. Bxf8 {[%clk 0:01:44]}
22... Rxf8 {[%clk 0:02:01.7]} 23. h5 {[%clk 0:01:44.9]} 23... Ra7 {[%clk
0:01:42.4]} 24. Rb4 {[%clk 0:01:38.6]} 24... Qd8 {[%clk 0:01:03.4]} 25. Rg4
{[%clk 0:00:55.2]} 25... f5 {[%clk 0:00:33.3]} 26. exf6 {[%clk 0:00:47.8]} 26...
Rxf6 {[%clk 0:00:22.1]} 27. Nxh7 {[%clk 0:00:35.3]} 27... Rxh7 {[%clk
0:00:20.5]} 28. Bxg6 {[%clk 0:00:33.4]} 28... Rg7 {[%clk 0:00:19.5]} 29. Qh6
{[%clk 0:00:33.6]} 29... Qe7 {[%clk 0:00:15]} 30. Re5 {[%clk 0:00:27.7]} 30...
Ne4 {[%clk 0:00:12.5]} 31. f3 {[%clk 0:00:19.6]} 31... Qc5+ {[%clk 0:00:08.3]}
32. Kh2 {[%clk 0:00:19.5]} 32... Qc7 {[%clk 0:00:07.6]} 33. g3 {[%clk
0:00:14.8]} 33... Rfxg6 {[%clk 0:00:04.8]} 34. hxg6 {[%clk 0:00:08.6]} 34...
Qxe5 {[%clk 0:00:05.4]} 35. fxe4 {[%clk 0:00:09.3]} 35... Qf6 {[%clk 0:00:03.7]}
36. Rh4 {[%clk 0:00:07.5]} 36... Qf2+ {[%clk 0:00:03.7]} 37. Kh3 {[%clk
0:00:07.7]} 37... e5+ {[%clk 0:00:03.6]} 38. g4 {[%clk 0:00:08.2]} 38... Qf3+
{[%clk 0:00:04.2]} 39. Kh2 {[%clk 0:00:08.8]} 39... Qf2+ {[%clk 0:00:04.8]} 40.
Kh1 {[%clk 0:00:09.4]} 40... Qf1+ {[%clk 0:00:04.8]} 41. Kh2 {[%clk 0:00:10]}
41... Qf4+ {[%clk 0:00:05.7]} 42. Kh1 {[%clk 0:00:10.7]} 42... Qxh6 {[%clk
0:00:05.4]} 0-1

[Event "Early-Titled-Tuesday-Blitz-September-05-2023"]
[Site "Chess.com"]
[Date "2023.09.05"]
[Round "4"]
[White "lacafi"]
[Black "AlphaPerseii"]
[Result "1-0"]
[WhiteElo "2213"]
[BlackElo "2387"]
[TimeControl "180+1"]
[EndTime "8:38:10 PDT"]
[Termination "lacafi won on time"]

1. d4 {[%clk 0:03:00.9]} 1... Nf6 {[%clk 0:03:00]} 2. Nf3 {[%clk 0:03:01]} 2...
g6 {[%clk 0:02:53.1]} 3. c4 {[%clk 0:03:00.9]} 3... Bg7 {[%clk 0:02:49.5]} 4.
Nc3 {[%clk 0:03:01.3]} 4... d5 {[%clk 0:02:49.9]} 5. cxd5 {[%clk 0:03:01.9]}
5... Nxd5 {[%clk 0:02:50.7]} 6. e4 {[%clk 0:03:02.7]} 6... Nxc3 {[%clk
0:02:50.5]} 7. bxc3 {[%clk 0:03:03.6]} 7... c5 {[%clk 0:02:47.8]} 8. Be2 {[%clk
0:03:03.6]} 8... O-O {[%clk 0:02:45.8]} 9. O-O {[%clk 0:03:03.3]} 9... Nc6
{[%clk 0:02:42]} 10. Be3 {[%clk 0:03:03.9]} 10... Qa5 {[%clk 0:02:34.9]} 11. Qb3
{[%clk 0:03:01.8]} 11... b6 {[%clk 0:02:18.4]} 12. Rad1 {[%clk 0:02:58.3]} 12...
Bg4 {[%clk 0:02:13.3]} 13. h3 {[%clk 0:02:51.8]} 13... Bxf3 {[%clk 0:02:02.7]}
14. Bxf3 {[%clk 0:02:52.7]} 14... Rad8 {[%clk 0:01:56.3]} 15. e5 {[%clk
0:02:07.4]} 15... cxd4 {[%clk 0:01:53.5]} 16. cxd4 {[%clk 0:02:03.8]} 16... Nb4
{[%clk 0:01:50.2]} 17. Bd2 {[%clk 0:01:37.6]} 17... Rxd4 {[%clk 0:01:45.2]} 18.
Bc3 {[%clk 0:01:22.3]} 18... Rf4 {[%clk 0:01:05.3]} 19. a3 {[%clk 0:01:17.9]}
19... Bxe5 {[%clk 0:00:55]} 20. Bxe5 {[%clk 0:01:12.8]} 20... Qxe5 {[%clk
0:00:55.9]} 21. axb4 {[%clk 0:01:13]} 21... Rc8 {[%clk 0:00:52]} 22. Rfe1 {[%clk
0:01:10.3]} 22... Qg5 {[%clk 0:00:48.5]} 23. Rd5 {[%clk 0:01:02]} 23... Qf6
{[%clk 0:00:44.9]} 24. Rd3 {[%clk 0:00:50.4]} 24... Rcc4 {[%clk 0:00:41.8]} 25.
Qa3 {[%clk 0:00:46]} 25... Rxb4 {[%clk 0:00:38.2]} 26. Qxa7 {[%clk 0:00:46]}
26... e6 {[%clk 0:00:38.9]} 27. Qb8+ {[%clk 0:00:28.3]} 27... Kg7 {[%clk
0:00:36.5]} 28. Qe5 {[%clk 0:00:23.7]} 28... h5 {[%clk 0:00:32.8]} 29. Rd7
{[%clk 0:00:19.5]} 29... h4 {[%clk 0:00:20]} 30. Rb7 {[%clk 0:00:18.9]} 30... g5
{[%clk 0:00:15.6]} 31. Qxe6 {[%clk 0:00:10.4]} 31... Qd4 {[%clk 0:00:05.7]} 32.
Qe5+ {[%clk 0:00:08.3]} 32... Kg6 {[%clk 0:00:03.9]} 33. Qxd4 {[%clk 0:00:07.5]}
33... Rfxd4 {[%clk 0:00:04.1]} 34. Ree7 {[%clk 0:00:06.1]} 34... f6 {[%clk
0:00:03.8]} 35. Red7 {[%clk 0:00:04.5]} 35... Rf4 {[%clk 0:00:02.2]} 36. Rd6
{[%clk 0:00:03.9]} 36... b5 {[%clk 0:00:01.9]} 37. Rdb6 {[%clk 0:00:04.3]} 37...
Rb1+ {[%clk 0:00:01.8]} 38. Kh2 {[%clk 0:00:04.3]} 38... Rfb4 {[%clk 0:00:02.6]}
39. g3 {[%clk 0:00:01.2]} 39... hxg3+ {[%clk 0:00:02.7]} 40. Kxg3 {[%clk
0:00:01.8]} 40... g4 {[%clk 0:00:02]} 41. hxg4 {[%clk 0:00:02.1]} 41... Kg5
{[%clk 0:00:02.3]} 42. Rg7+ {[%clk 0:00:02.1]} 42... Kh6 {[%clk 0:00:02.8]} 43.
Rbb7 {[%clk 0:00:02.4]} 43... f5 {[%clk 0:00:01.1]} 44. gxf5 {[%clk 0:00:02.3]}
1-0

[Event "Early-Titled-Tuesday-Blitz-September-05-2023"]
[Site "Chess.com"]
[Date "2023.09.05"]
[Round "4"]
[White "Aevengho"]
[Black "RobertoJBM"]
[Result "0-1"]
[WhiteElo "2532"]
[BlackElo "2809"]
[TimeControl "180+1"]
[EndTime "8:38:11 PDT"]
[Termination "RobertoJBM won on time"]

1. e4 {[%clk 0:03:00.2]} 1... c6 {[%clk 0:02:59.8]} 2. d4 {[%clk 0:02:59.4]}
2... d5 {[%clk 0:03:00.7]} 3. Nc3 {[%clk 0:03:00.1]} 3... dxe4 {[%clk 0:03:01]}
4. Nxe4 {[%clk 0:03:01]} 4... Nd7 {[%clk 0:03:01.5]} 5. Bc4 {[%clk 0:02:59.4]}
5... Ngf6 {[%clk 0:03:01.3]} 6. Ng5 {[%clk 0:02:58.3]} 6... e6 {[%clk
0:03:01.3]} 7. Qe2 {[%clk 0:02:58.7]} 7... Nb6 {[%clk 0:03:01.6]} 8. Bd3 {[%clk
0:02:58.5]} 8... h6 {[%clk 0:03:02.1]} 9. N5f3 {[%clk 0:02:58.7]} 9... c5 {[%clk
0:03:02.1]} 10. dxc5 {[%clk 0:02:56.4]} 10... Nbd7 {[%clk 0:03:01.9]} 11. Be3
{[%clk 0:02:46.7]} 11... Bxc5 {[%clk 0:02:59.4]} 12. O-O-O {[%clk 0:02:45.8]}
12... Qa5 {[%clk 0:02:59.1]} 13. Kb1 {[%clk 0:02:44.9]} 13... a6 {[%clk
0:02:53.9]} 14. Nd2 {[%clk 0:02:38.8]} 14... Bxe3 {[%clk 0:02:52.3]} 15. fxe3
{[%clk 0:02:35.7]} 15... b5 {[%clk 0:02:46.2]} 16. Ngf3 {[%clk 0:02:29.3]} 16...
Bb7 {[%clk 0:02:45.7]} 17. e4 {[%clk 0:02:24.7]} 17... e5 {[%clk 0:02:31.7]} 18.
g4 {[%clk 0:02:24.5]} 18... O-O-O {[%clk 0:02:29.3]} 19. Nb3 {[%clk 0:02:20.7]}
19... Qb6 {[%clk 0:02:25.4]} 20. Rhg1 {[%clk 0:02:21.3]} 20... Kb8 {[%clk
0:02:20.1]} 21. g5 {[%clk 0:02:18.5]} 21... hxg5 {[%clk 0:02:19.5]} 22. Rxg5
{[%clk 0:02:19.4]} 22... g6 {[%clk 0:02:07.2]} 23. Nxe5 {[%clk 0:02:12.9]} 23...
Nxe5 {[%clk 0:02:08.1]} 24. Rxe5 {[%clk 0:02:13.3]} 24... Nd7 {[%clk 0:02:08.5]}
25. Rg5 {[%clk 0:02:02.3]} 25... Qf6 {[%clk 0:02:00.1]} 26. Qg2 {[%clk
0:01:38.7]} 26... Ne5 {[%clk 0:01:57.4]} 27. Rf1 {[%clk 0:01:35.1]} 27... Qd6
{[%clk 0:01:51.2]} 28. Be2 {[%clk 0:01:25.3]} 28... f6 {[%clk 0:01:36.8]} 29.
Rg3 {[%clk 0:01:23.9]} 29... g5 {[%clk 0:01:37.4]} 30. a3 {[%clk 0:01:23.1]}
30... Rh4 {[%clk 0:01:34.3]} 31. Re3 {[%clk 0:01:01.9]} 31... Rdh8 {[%clk
0:01:30.7]} 32. h3 {[%clk 0:00:55.2]} 32... Bc8 {[%clk 0:01:30.8]} 33. Qf2
{[%clk 0:00:45.1]} 33... Rf4 {[%clk 0:01:27.5]} 34. Qg3 {[%clk 0:00:41]} 34...
Rxh3 {[%clk 0:01:23]} 35. Qg1 {[%clk 0:00:35.7]} 35... Rxe3 {[%clk 0:00:59.8]}
36. Qxe3 {[%clk 0:00:36.6]} 36... Rxf1+ {[%clk 0:00:59.8]} 37. Bxf1 {[%clk
0:00:37.4]} 37... Qd1+ {[%clk 0:00:59.9]} 38. Ka2 {[%clk 0:00:36.7]} 38... Qxf1
{[%clk 0:00:53.2]} 39. Qb6+ {[%clk 0:00:36.5]} 39... Ka8 {[%clk 0:00:50]} 40.
Qc7 {[%clk 0:00:36.4]} 40... Qc4 {[%clk 0:00:49.2]} 41. Qe7 {[%clk 0:00:29]}
41... Qc6 {[%clk 0:00:40.3]} 42. Kb1 {[%clk 0:00:23.7]} 42... g4 {[%clk
0:00:21.7]} 43. Nd4 {[%clk 0:00:18.8]} 43... Qb6 {[%clk 0:00:22]} 44. Qe8 {[%clk
0:00:11.9]} 44... Kb8 {[%clk 0:00:20.6]} 45. Nf5 {[%clk 0:00:09.3]} 45... Qc7
{[%clk 0:00:17.7]} 46. Qg8 {[%clk 0:00:06.2]} 46... Kb7 {[%clk 0:00:16.2]} 47.
b3 {[%clk 0:00:04.7]} 47... Bxf5 {[%clk 0:00:16.1]} 48. exf5 {[%clk 0:00:02.6]}
48... Qf7 {[%clk 0:00:15.3]} 0-1

[Event "Early-Titled-Tuesday-Blitz-September-05-2023"]
[Site "Chess.com"]
[Date "2023.09.05"]
[Round "4"]
[White "Vanina1989"]
[Black "MITerryble"]
[Result "0-1"]
[WhiteElo "2720"]
[BlackElo "2932"]
[TimeControl "180+1"]
[EndTime "8:38:13 PDT"]
[Termination "MITerryble won by resignation"]

1. d4 {[%clk 0:03:00.9]} 1... e6 {[%clk 0:02:55.8]} 2. c4 {[%clk 0:02:59.6]}
2... Bb4+ {[%clk 0:02:53.2]} 3. Bd2 {[%clk 0:02:58.9]} 3... Bxd2+ {[%clk
0:02:51.5]} 4. Qxd2 {[%clk 0:02:58.8]} 4... Nf6 {[%clk 0:02:52.2]} 5. Nc3 {[%clk
0:02:58.7]} 5... d6 {[%clk 0:02:52.9]} 6. e4 {[%clk 0:02:57.8]} 6... e5 {[%clk
0:02:53.3]} 7. Nf3 {[%clk 0:02:50.4]} 7... Nc6 {[%clk 0:02:47.4]} 8. d5 {[%clk
0:02:37.4]} 8... Nb8 {[%clk 0:02:43.6]} 9. Bd3 {[%clk 0:02:29.4]} 9... Bg4
{[%clk 0:02:38.3]} 10. Ng1 {[%clk 0:02:12.6]} 10... a5 {[%clk 0:02:35.6]} 11. h3
{[%clk 0:02:12.2]} 11... Bh5 {[%clk 0:02:31.8]} 12. g4 {[%clk 0:02:12.2]} 12...
Bg6 {[%clk 0:02:32.3]} 13. Nge2 {[%clk 0:02:12.4]} 13... h5 {[%clk 0:02:32.5]}
14. g5 {[%clk 0:02:10.6]} 14... Nfd7 {[%clk 0:02:29.7]} 15. h4 {[%clk
0:02:09.2]} 15... Na6 {[%clk 0:02:26.9]} 16. Ng3 {[%clk 0:02:08]} 16... Nac5
{[%clk 0:02:22.3]} 17. Be2 {[%clk 0:02:01.9]} 17... a4 {[%clk 0:02:19.2]} 18.
Qd1 {[%clk 0:01:50.5]} 18... Nb6 {[%clk 0:02:19.3]} 19. Kf1 {[%clk 0:01:44.1]}
19... f6 {[%clk 0:01:51.7]} 20. Nxh5 {[%clk 0:01:42]} 20... fxg5 {[%clk
0:01:10.1]} 21. Rg1 {[%clk 0:01:41.6]} 21... Qe7 {[%clk 0:00:57.5]} 22. Rxg5
{[%clk 0:01:38.9]} 22... Rh6 {[%clk 0:00:58.1]} 23. Ng3 {[%clk 0:01:01.8]} 23...
O-O-O {[%clk 0:00:52.6]} 24. b4 {[%clk 0:01:00.7]} 24... Ncd7 {[%clk 0:00:37.6]}
25. Nxa4 {[%clk 0:00:59.9]} 25... Bh7 {[%clk 0:00:35]} 26. Nxb6+ {[%clk
0:00:56.2]} 26... cxb6 {[%clk 0:00:27.1]} 27. Bh5 {[%clk 0:00:48.5]} 27... g6
{[%clk 0:00:24.7]} 28. Bf3 {[%clk 0:00:39.5]} 28... Rxh4 {[%clk 0:00:24.3]} 29.
Rg4 {[%clk 0:00:40.1]} 29... Rf8 {[%clk 0:00:15.4]} 30. Kg2 {[%clk 0:00:39.3]}
30... Kc7 {[%clk 0:00:13.3]} 31. a4 {[%clk 0:00:38.2]} 31... Rf4 {[%clk
0:00:08.6]} 32. Rxh4 {[%clk 0:00:36.3]} 32... Qxh4 {[%clk 0:00:08.7]} 33. Qh1
{[%clk 0:00:35]} 33... Qe7 {[%clk 0:00:08.8]} 34. Qh3 {[%clk 0:00:30.1]} 34...
Qf7 {[%clk 0:00:08.7]} 35. Ra3 {[%clk 0:00:26.9]} 35... g5 {[%clk 0:00:08.2]}
36. Qe6 {[%clk 0:00:23.2]} 36... Qf8 {[%clk 0:00:08.6]} 37. Nh5 {[%clk
0:00:19.7]} 37... g4 {[%clk 0:00:08.2]} 38. Nxf4 {[%clk 0:00:18.8]} 38... gxf3+
{[%clk 0:00:09.1]} 39. Rxf3 {[%clk 0:00:18.8]} 39... Bxe4 {[%clk 0:00:05.8]} 40.
Qg4 {[%clk 0:00:12.6]} 40... Bxf3+ {[%clk 0:00:05.6]} 41. Kxf3 {[%clk 0:00:13]}
41... exf4 {[%clk 0:00:06.2]} 42. Qxf4 {[%clk 0:00:12.8]} 42... Ne5+ {[%clk
0:00:06.7]} 43. Ke4 {[%clk 0:00:13.3]} 43... Qe7 {[%clk 0:00:06.2]} 44. Kd4
{[%clk 0:00:13.3]} 44... Qg7 {[%clk 0:00:06.3]} 45. Qf5 {[%clk 0:00:12.2]} 45...
Nc6+ {[%clk 0:00:05.5]} 46. Ke3 {[%clk 0:00:11.5]} 46... Qc3+ {[%clk 0:00:05.1]}
47. Ke2 {[%clk 0:00:10.9]} 47... Nd4+ {[%clk 0:00:05.3]} 0-1

[Event "Early-Titled-Tuesday-Blitz-September-05-2023"]
[Site "Chess.com"]
[Date "2023.09.05"]
[Round "4"]
[White "Roedor"]
[Black "GamayevOleg"]
[Result "0-1"]
[WhiteElo "2455"]
[BlackElo "2624"]
[TimeControl "180+1"]
[EndTime "8:38:13 PDT"]
[Termination "GamayevOleg won by resignation"]

1. d4 {[%clk 0:02:53]} 1... d6 {[%clk 0:02:59.8]} 2. Nf3 {[%clk 0:02:51.5]} 2...
Nf6 {[%clk 0:03:00.1]} 3. c4 {[%clk 0:02:51.4]} 3... g6 {[%clk 0:03:00.6]} 4. g3
{[%clk 0:02:49.9]} 4... Bg7 {[%clk 0:03:01]} 5. Bg2 {[%clk 0:02:50.5]} 5... O-O
{[%clk 0:03:01.9]} 6. Nc3 {[%clk 0:02:51]} 6... Nc6 {[%clk 0:03:02.1]} 7. O-O
{[%clk 0:02:50.7]} 7... a6 {[%clk 0:03:02.7]} 8. Bf4 {[%clk 0:02:50.3]} 8... Rb8
{[%clk 0:03:00.2]} 9. Rc1 {[%clk 0:02:50.2]} 9... Bf5 {[%clk 0:02:59]} 10. h3
{[%clk 0:02:49]} 10... Ne4 {[%clk 0:02:58.7]} 11. g4 {[%clk 0:02:46.1]} 11...
Nxc3 {[%clk 0:02:58.6]} 12. Rxc3 {[%clk 0:02:45.3]} 12... Be4 {[%clk 0:02:58.5]}
13. Be3 {[%clk 0:02:31.6]} 13... Re8 {[%clk 0:02:42.1]} 14. a3 {[%clk 0:02:27]}
14... Qd7 {[%clk 0:02:36.2]} 15. d5 {[%clk 0:02:19.2]} 15... Nd8 {[%clk
0:02:26.5]} 16. Bd4 {[%clk 0:02:15.5]} 16... e5 {[%clk 0:02:24.5]} 17. dxe6
{[%clk 0:02:15]} 17... Nxe6 {[%clk 0:02:22.9]} 18. Bxg7 {[%clk 0:02:15]} 18...
Nxg7 {[%clk 0:02:23.8]} 19. Qd2 {[%clk 0:02:00.1]} 19... h5 {[%clk 0:02:15.3]}
20. Qh6 {[%clk 0:01:50.2]} 20... Bxf3 {[%clk 0:02:12.9]} 21. Bxf3 {[%clk
0:01:48.5]} 21... hxg4 {[%clk 0:02:10.7]} 22. hxg4 {[%clk 0:01:49.4]} 22... Qe7
{[%clk 0:02:05.5]} 23. Kg2 {[%clk 0:01:44.1]} 23... Ne6 {[%clk 0:02:01.7]} 24.
Rh1 {[%clk 0:01:37.8]} 24... Qf6 {[%clk 0:02:01.7]} 25. e3 {[%clk 0:01:19]}
25... Qg7 {[%clk 0:01:59.2]} 26. Bd5 {[%clk 0:01:12.6]} 26... Qxh6 {[%clk
0:01:58.3]} 27. Rxh6 {[%clk 0:01:13.5]} 27... Kg7 {[%clk 0:01:58.9]} 28. Rh1
{[%clk 0:01:10.3]} 28... c6 {[%clk 0:01:45.2]} 29. Bxe6 {[%clk 0:01:08.2]} 29...
Rxe6 {[%clk 0:01:44.7]} 30. Rd1 {[%clk 0:01:04]} 30... Kf6 {[%clk 0:01:45.2]}
31. Rcd3 {[%clk 0:01:00.6]} 31... Ke7 {[%clk 0:01:45.7]} 32. b4 {[%clk
0:00:48.9]} 32... b5 {[%clk 0:01:34.9]} 33. Rc1 {[%clk 0:00:30.9]} 33... bxc4
{[%clk 0:01:24]} 34. Rxc4 {[%clk 0:00:31.8]} 34... Kd7 {[%clk 0:01:24.5]} 35.
Rc5 {[%clk 0:00:26.3]} 35... Rb5 {[%clk 0:01:23.5]} 36. Kg3 {[%clk 0:00:17.2]}
36... Kc7 {[%clk 0:01:19.6]} 37. Rxb5 {[%clk 0:00:13.5]} 37... axb5 {[%clk
0:01:20.5]} 38. f4 {[%clk 0:00:13]} 38... c5 {[%clk 0:01:14.6]} 39. bxc5 {[%clk
0:00:11.1]} 39... dxc5 {[%clk 0:01:15.5]} 40. f5 {[%clk 0:00:11.4]} 40... gxf5
{[%clk 0:01:15.2]} 41. gxf5 {[%clk 0:00:12.3]} 41... Re4 {[%clk 0:01:13]} 42.
Kf3 {[%clk 0:00:11.3]} 42... Re5 {[%clk 0:01:12.6]} 43. e4 {[%clk 0:00:11.2]}
43... c4 {[%clk 0:01:11.1]} 44. Rd2 {[%clk 0:00:09]} 44... Rc5 {[%clk
0:01:10.4]} 45. Ke3 {[%clk 0:00:08.2]} 45... Rc6 {[%clk 0:01:07.8]} 46. Rd5
{[%clk 0:00:07.7]} 46... Kb6 {[%clk 0:01:06.1]} 47. Rd2 {[%clk 0:00:06.2]} 47...
Kc5 {[%clk 0:01:05.5]} 48. e5 {[%clk 0:00:04.4]} 48... Rh6 {[%clk 0:01:05.4]}
49. Ke4 {[%clk 0:00:03.6]} 49... Rh4+ {[%clk 0:01:04.9]} 50. Kf3 {[%clk
0:00:03.7]} 50... Rh3+ {[%clk 0:01:05.4]} 51. Kg4 {[%clk 0:00:03.9]} 51... Re3
{[%clk 0:01:02]} 52. Kf4 {[%clk 0:00:03.7]} 52... Re1 {[%clk 0:01:02.1]} 53. e6
{[%clk 0:00:03.5]} 53... fxe6 {[%clk 0:01:02]} 54. f6 {[%clk 0:00:04]} 54... c3
{[%clk 0:00:59.7]} 55. Rc2 {[%clk 0:00:03.3]} 55... Kc4 {[%clk 0:01:00.3]} 56.
Kg5 {[%clk 0:00:02.1]} 56... Kd3 {[%clk 0:00:59.2]} 57. Rf2 {[%clk 0:00:02.3]}
57... Rg1+ {[%clk 0:00:57]} 58. Kh4 {[%clk 0:00:01.8]} 58... Rg8 {[%clk
0:00:57]} 59. f7 {[%clk 0:00:02]} 59... Rf8 {[%clk 0:00:57.6]} 60. Kg5 {[%clk
0:00:02.2]} 60... c2 {[%clk 0:00:57.8]} 61. Rxc2 {[%clk 0:00:02.5]} 61... Kxc2
{[%clk 0:00:57.9]} 62. Kf6 {[%clk 0:00:03.4]} 62... e5 {[%clk 0:00:56.6]} 63.
Ke7 {[%clk 0:00:03.3]} 63... Rxf7+ {[%clk 0:00:56.7]} 64. Kxf7 {[%clk
0:00:03.7]} 64... e4 {[%clk 0:00:57.6]} 0-1